[Event "Fall IM Norm Invitational 2020"]
[Site "Charlotte"]
[Date "2020.10.04"]
[Round "7.2"]
[White "Adamson, Robby"]
[Black "Krykun, Yuriy"]
[Result "0-1"]
[ECO "B13"]
[WhiteElo "2235"]
[BlackElo "2371"]
[Annotator "ChessBase"]
[PlyCount "162"]
[EventDate "2020.09.30"]
[EventType "tourn"]
[EventCountry "USA"]
[SourceTitle "playchess.com"]
[Source "ChessBase"]
[SourceQuality "1"]
[TimeControl "5400+30"]

1. e4 {[%emt 1:30:30]} c6 {[%emt 1:30:30]} 2. d4 {[%emt 0:00:30]} d5 {[%emt 0:00:30]} 3. exd5 {[%emt 0:00:30]} cxd5 {[%emt 0:00:30]} 4. Bd3 {[%emt 0:00:30]} Nc6 {[%emt 0:00:30]} 5. c3 {[%emt 0:00:30]} Nf6 {[%emt 0:00:30]} 6. Bf4 {[%emt 0:00:30]} g6 {[%emt 0:00:30]} 7. Nf3 {[%emt 0:00:30]} Bg7 {[%emt 0:00:30]} 8. O-O {[%emt 0:00:30]} O-O {[%emt 0:00:30]} 9. Re1 {[%emt 0:00:30]} Bf5 {[%emt 0:00:30]} 10. Na3 {[%emt 0:00:30]} Bxd3 {[%emt 0:00:30]} 11. Qxd3 {[%emt 0:00:30]} Rc8 {[%emt 0:00:30]} 12. Nc2 {[%emt 0:00:30]} Qb6 {[%emt 0:00:30]} 13. Rab1 {[%emt 0:00:30]} Rfe8 {[%emt 0:00:30]} 14. Ne3 {[%emt 0:00:30]} e6 {[%emt 0:00:30]} 15. h3 {[%emt 0:00:30]} Qa6 {[%emt 0:00:30]} 16. Qxa6 {[%emt 0:00:30]} bxa6 {[%emt 0:00:30]} 17. Rbc1 {[%emt 0:00:30]} Nd7 {[%emt 0:00:30]} 18. Red1 {[%emt 0:00:30]} Na5 {[%emt 0:00:30]} 19. b3 {[%emt 0:00:30]} Nb6 {[%emt 0:00:30]} 20. Rc2 {[%emt 0:00:30]} f6 {[%emt 0:00:30]} 21. Bd6 {[%emt 0:00:30]} Red8 {[%emt 0:00:30]} 22. Bc5 {[%emt 0:00:30]} Bf8 {[%emt 0:00:30]} 23. Bxf8 {[%emt 0:00:30]} Kxf8 {[%emt 0:00:30]} 24. h4 {[%emt 0:00:30]} h6 {[%emt 0:00:30]} 25. Rd3 {[%emt 0:00:30]} Kf7 {[%emt 0:00:30]} 26. Re2 {[%emt 0:00:30]} Nb7 {[%emt 0:00:30]} 27. Nd1 {[%emt 0:00:30]} Nd6 {[%emt 0:00:30]} 28. Nd2 {[%emt 0:00:30]} a5 {[%emt 0:00:30]} 29. a4 Nf5 {[%emt 0:00:30]} 30. g3 {[%emt 0:01:00]} Rc7 {[%emt 0:00:30]} 31. Nf3 {[%emt 0:00:30]} g5 {[%emt 0:00:30]} 32. hxg5 {[%emt 0:00:30]} hxg5 {[%emt 0:00:30]} 33. Ne3 {[%emt 0:00:30]} Nd6 {[%emt 0:00:30]} 34. Ng4 {[%emt 0:00:30]} Re8 {[%emt 0:00:30]} 35. Kg2 {[%emt 0:00:30]} Nd7 {[%emt 0:00:30]} 36. Nd2 {[%emt 0:00:30]} f5 {[%emt 0:00:30]} 37. Ne5+ {[%emt 0:00:30]} Nxe5 {[%emt 0:00:30]} 38. Rxe5 g4 {[%emt 0:00:30]} 39. c4 {[%emt 0:01:00]} dxc4 {[%emt 0:00:30]} 40. bxc4 {[%emt 0:00:30]} Nxc4 {[%emt 0:00:30]} 41. Nxc4 {[%emt 0:00:30]} Rxc4 {[%emt 0:00:30]} 42. Rxa5 {[%emt 0:00:30]} Rc7 {[%emt 0:00:30]} 43. d5 {[%emt 0:00:30]} e5 {[%emt 0:00:30]} 44. d6 {[%emt 0:00:30]} Rd7 {[%emt 0:00:30]} 45. Rdd5 {[%emt 0:00:30]} Kf6 {[%emt 0:00:30]} 46. f3 {[%emt 0:00:30]} gxf3+ {[%emt 0:00:30]} 47. Kxf3 Re6 {[%emt 0:00:30]} 48. Ke3 {[%emt 0:01:00]} Rdxd6 {[%emt 0:00:30]} 49. Rxd6 {[%emt 0:00:30]} Rxd6 {[%emt 0:00:30]} 50. Rxa7 {[%emt 0:00:30]} Rb6 {[%emt 0:00:30]} 51. Ra8 {[%emt 0:00:30]} Rb3+ {[%emt 0:00:30]} 52. Kf2 Ke6 {[%emt 0:00:30]} 53. Ra5 {[%emt 0:01:00]} Ra3 {[%emt 0:00:30]} 54. Kg2 {[%emt 0:00:30]} e4 {[%emt 0:00:30]} 55. Kf2 {[%emt 0:00:30]} Kf6 {[%emt 0:00:30]} 56. Ra8 {[%emt 0:00:30]} Rf3+ {[%emt 0:00:30]} 57. Kg2 Ke5 58. a5 {[%emt 0:01:00]} Kd4 {[%emt 0:01:00]} 59. a6 {[%emt 0:00:30]} Ra3 {[%emt 0:00:30]} 60. Rd8+ {[%emt 0:00:30]} Ke3 {[%emt 0:00:30]} 61. Rd5 {[%emt 0:00:30]} Ra2+ {[%emt 0:00:30]} 62. Kh3 {[%emt 0:00:30]} f4 {[%emt 0:00:30]} 63. gxf4 {[%emt 0:00:30]} Kf3 {[%emt 0:00:30]} 64. f5 {[%emt 0:00:30]} Rxa6 {[%emt 0:00:30]} 65. Kh4 {[%emt 0:00:30]} Kf4 {[%emt 0:00:30]} 66. Kh3 {[%emt 0:00:30]} e3 {[%emt 0:00:30]} 67. Rd1 {[%emt 0:00:30]} Kxf5 {[%emt 0:00:30]} 68. Kg2 Ke4 {[%emt 0:00:30]} 69. Rd8 {[%emt 0:01:00]} Rf6 {[%emt 0:00:30]} 70. Ra8 {[%emt 0:00:30]} Rf2+ {[%emt 0:00:30]} 71. Kg1 {[%emt 0:00:30]} Kf3 {[%emt 0:00:30]} 72. Rf8+ {[%emt 0:00:30]} Ke2 {[%emt 0:00:30]} 73. Ra8 {[%emt 0:00:30]} Rf7 {[%emt 0:00:30]} 74. Ra2+ {[%emt 0:00:30]} Kd3 {[%emt 0:00:30]} 75. Ra3+ {[%emt 0:00:30]} Ke4 {[%emt 0:00:30]} 76. Ra8 {[%emt 0:00:30]} e2 {[%emt 0:00:30]} 77. Ra4+ {[%emt 0:00:30]} Kf3 {[%emt 0:00:30]} 78. Ra3+ {[%emt 0:00:30]} Kg4 {[%emt 0:00:30]} 79. Ra4+ {[%emt 0:00:30]} Kg3 {[%emt 0:00:30]} 80. Ra3+ {[%emt 0:00:30]} Rf3 81. Ra1 {[%emt 0:00:30]} Rd3 {[%emt 0:01:00]} 0-1

[Event "Fall IM Norm Invitational 2020"]
[Site "Charlotte"]
[Date "2020.10.04"]
[Round "7.3"]
[White "Vivekananthan, Anish"]
[Black "Martin Del Campo C., Roberto"]
[Result "1/2-1/2"]
[ECO "B34"]
[WhiteElo "2239"]
[BlackElo "2311"]
[Annotator "ChessBase"]
[PlyCount "170"]
[EventDate "2020.09.30"]
[EventType "tourn"]
[EventCountry "USA"]
[SourceTitle "playchess.com"]
[Source "ChessBase"]
[SourceQuality "1"]
[TimeControl "5400+30"]

1. e4 {[%emt 1:30:30]} c5 {[%emt 1:30:30]} 2. Nc3 {[%emt 0:00:30]} Nc6 {[%emt 0:00:30]} 3. Nge2 {[%emt 0:00:30]} d6 {[%emt 0:00:30]} 4. g3 {[%emt 0:00:30]} g6 {[%emt 0:00:30]} 5. d4 {[%emt 0:00:30]} cxd4 {[%emt 0:00:30]} 6. Nxd4 {[%emt 0:00:30]} Bg7 {[%emt 0:00:30]} 7. Nde2 {[%emt 0:00:30]} Bg4 {[%emt 0:00:30]} 8. Bg2 {[%emt 0:00:30]} Bxc3+ {[%emt 0:00:30]} 9. bxc3 {[%emt 0:00:30]} Qa5 {[%emt 0:00:30]} 10. O-O {[%emt 0:00:30]} Nf6 {[%emt 0:00:30]} 11. f3 {[%emt 0:00:30]} Be6 {[%emt 0:00:30]} 12. Bd2 {[%emt 0:00:30]} O-O {[%emt 0:00:30]} 13. Kh1 {[%emt 0:00:30]} Bc4 {[%emt 0:00:30]} 14. Re1 {[%emt 0:00:30]} d5 {[%emt 0:00:30]} 15. e5 {[%emt 0:00:30]} Nxe5 {[%emt 0:00:30]} 16. Nd4 {[%emt 0:00:30]} Nc6 {[%emt 0:00:30]} 17. Nxc6 {[%emt 0:00:30]} bxc6 {[%emt 0:00:30]} 18. Rxe7 Rfe8 {[%emt 0:00:30]} 19. Qe1 {[%emt 0:01:00]} Kg7 {[%emt 0:00:30]} 20. Re3 {[%emt 0:00:30]} h5 {[%emt 0:00:30]} 21. a4 {[%emt 0:00:30]} Rab8 {[%emt 0:00:30]} 22. h4 {[%emt 0:00:30]} c5 {[%emt 0:00:30]} 23. Kh2 {[%emt 0:00:30]} Qb6 {[%emt 0:00:30]} 24. Qf2 {[%emt 0:00:30]} Qc6 {[%emt 0:00:30]} 25. a5 {[%emt 0:00:30]} Qc7 {[%emt 0:00:30]} 26. Rxe8 {[%emt 0:00:30]} Rxe8 {[%emt 0:00:30]} 27. Be3 {[%emt 0:00:30]} Nd7 {[%emt 0:00:30]} 28. Re1 {[%emt 0:00:30]} Re6 {[%emt 0:00:30]} 29. Bh3 {[%emt 0:00:30]} f5 {[%emt 0:00:30]} 30. Bf4 {[%emt 0:00:30]} Qc6 {[%emt 0:00:30]} 31. g4 {[%emt 0:00:30]} Rxe1 {[%emt 0:00:30]} 32. Qxe1 d4 {[%emt 0:00:30]} 33. Qg3 {[%emt 0:01:00]} fxg4 {[%emt 0:00:30]} 34. fxg4 {[%emt 0:00:30]} Be2 35. g5 {[%emt 0:00:30]} Bg4 {[%emt 0:01:00]} 36. Bg2 {[%emt 0:00:30]} Qe6 {[%emt 0:00:30]} 37. cxd4 {[%emt 0:00:30]} cxd4 {[%emt 0:00:30]} 38. Qd3 {[%emt 0:00:30]} Qe1 {[%emt 0:00:30]} 39. Qxd4+ {[%emt 0:00:30]} Kh7 {[%emt 0:00:30]} 40. Bg3 {[%emt 0:00:30]} Qxa5 {[%emt 0:00:30]} 41. Bf2 {[%emt 0:00:30]} Qc7+ {[%emt 0:00:30]} 42. Bg3 {[%emt 0:00:30]} Qxc2 {[%emt 0:00:30]} 43. Qxa7 {[%emt 0:00:30]} Qc5 {[%emt 0:00:30]} 44. Qb7 {[%emt 0:00:30]} Qe7 {[%emt 0:00:30]} 45. Qd5 {[%emt 0:00:30]} Qe6 {[%emt 0:00:30]} 46. Qd4 {[%emt 0:00:30]} Bf5 {[%emt 0:00:30]} 47. Bd6 {[%emt 0:00:30]} Qe1 {[%emt 0:00:30]} 48. Bg3 {[%emt 0:00:30]} Qe6 {[%emt 0:00:30]} 49. Qf4 {[%emt 0:00:30]} Qe2 {[%emt 0:00:30]} 50. Qd4 {[%emt 0:00:30]} Qe6 {[%emt 0:00:30]} 51. Qb2 {[%emt 0:00:30]} Bg4 {[%emt 0:00:30]} 52. Qd2 {[%emt 0:00:30]} Ne5 {[%emt 0:00:30]} 53. Qf4 {[%emt 0:00:30]} Nd7 {[%emt 0:00:30]} 54. Kh1 {[%emt 0:00:30]} Bf5 {[%emt 0:00:30]} 55. Bf2 {[%emt 0:00:30]} Ne5 {[%emt 0:00:30]} 56. Bd4 {[%emt 0:00:30]} Ng4 {[%emt 0:00:30]} 57. Qc7+ {[%emt 0:00:30]} Qd7 {[%emt 0:00:30]} 58. Qxd7+ {[%emt 0:00:30]} Bxd7 {[%emt 0:00:30]} 59. Bd5 {[%emt 0:00:30]} Bf5 {[%emt 0:00:30]} 60. Kg2 {[%emt 0:00:30]} Bc2 {[%emt 0:00:30]} 61. Kf1 {[%emt 0:00:30]} Bd3+ {[%emt 0:00:30]} 62. Ke1 {[%emt 0:00:30]} Bf5 {[%emt 0:00:30]} 63. Kd2 {[%emt 0:00:30]} Bb1 {[%emt 0:00:30]} 64. Kc3 {[%emt 0:00:30]} Nh2 {[%emt 0:00:30]} 65. Bg2 {[%emt 0:00:30]} Ba2 {[%emt 0:00:30]} 66. Kb4 {[%emt 0:00:30]} Kg8 {[%emt 0:00:30]} 67. Kc5 {[%emt 0:00:30]} Kf7 {[%emt 0:00:30]} 68. Kd6 {[%emt 0:00:30]} Bc4 {[%emt 0:00:30]} 69. Be5 {[%emt 0:00:30]} Ng4 {[%emt 0:00:30]} 70. Bf4 {[%emt 0:00:30]} Ba2 {[%emt 0:00:30]} 71. Kd7 {[%emt 0:00:30]} Nf2 {[%emt 0:00:30]} 72. Be3 {[%emt 0:00:30]} Ng4 {[%emt 0:00:30]} 73. Bd4 {[%emt 0:00:30]} Bc4 {[%emt 0:00:30]} 74. Bc6 {[%emt 0:00:30]} Nh2 {[%emt 0:00:30]} 75. Kd8 {[%emt 0:00:30]} Kg8 {[%emt 0:00:30]} 76. Ke7 {[%emt 0:00:30]} Bf7 {[%emt 0:00:30]} 77. Be4 {[%emt 0:00:30]} Ng4 {[%emt 0:00:30]} 78. Bc6 {[%emt 0:00:30]} Nh2 {[%emt 0:00:30]} 79. Bg1 {[%emt 0:00:30]} Ng4 {[%emt 0:00:30]} 80. Kd6 {[%emt 0:00:30]} Kg7 {[%emt 0:00:30]} 81. Ke7 {[%emt 0:00:30]} Kg8 {[%emt 0:00:30]} 82. Bd4 {[%emt 0:00:30]} Nh2 {[%emt 0:00:30]} 83. Be4 {[%emt 0:00:30]} Ng4 {[%emt 0:00:30]} 84. Bg2 {[%emt 0:00:30]} Nh2 {[%emt 0:00:30]} 85. Kd6 {[%emt 0:00:30]} Ng4 {[%emt 0:00:30]} 1/2-1/2

[Event "Fall IM Norm Invitational 2020"]
[Site "Charlotte"]
[Date "2020.10.04"]
[Round "7.5"]
[White "Velikanov, Alexander"]
[Black "Matros, Alexander"]
[Result "1/2-1/2"]
[ECO "C51"]
[WhiteElo "2274"]
[BlackElo "2417"]
[Annotator "ChessBase"]
[PlyCount "61"]
[EventDate "2020.09.30"]
[EventType "tourn"]
[EventCountry "USA"]
[SourceTitle "playchess.com"]
[Source "ChessBase"]
[SourceQuality "1"]
[TimeControl "5400+30"]

1. e4 {[%emt 1:30:30]} e5 {[%emt 1:30:30]} 2. Nf3 {[%emt 0:00:30]} Nc6 {[%emt 0:00:30]} 3. Bc4 {[%emt 0:00:30]} Bc5 {[%emt 0:00:30]} 4. b4 {[%emt 0:00:30]} Bxb4 {[%emt 0:00:30]} 5. c3 {[%emt 0:00:30]} Bc5 {[%emt 0:00:30]} 6. d4 {[%emt 0:00:30]} exd4 {[%emt 0:00:30]} 7. cxd4 {[%emt 0:00:30]} Bb6 {[%emt 0:00:30]} 8. Bg5 {[%emt 0:00:30]} Nge7 {[%emt 0:00:30]} 9. d5 {[%emt 0:00:30]} Na5 {[%emt 0:00:30]} 10. d6 {[%emt 0:00:30]} cxd6 {[%emt 0:00:30]} 11. Bd5 {[%emt 0:00:30]} h6 {[%emt 0:00:30]} 12. Bxe7 {[%emt 0:00:30]} Qxe7 {[%emt 0:00:30]} 13. Na3 {[%emt 0:00:30]} Bc5 {[%emt 0:00:30]} 14. Nc2 {[%emt 0:00:30]} O-O {[%emt 0:00:30]} 15. O-O {[%emt 0:00:30]} Rb8 {[%emt 0:00:30]} 16. Nfd4 {[%emt 0:00:30]} b6 {[%emt 0:00:30]} 17. Ne3 {[%emt 0:00:30]} g6 {[%emt 0:00:30]} 18. Ng4 {[%emt 0:00:30]} Kh7 {[%emt 0:00:30]} 19. Qd3 {[%emt 0:00:30]} h5 {[%emt 0:00:30]} 20. Ne3 {[%emt 0:00:30]} Bxd4 {[%emt 0:00:30]} 21. Qxd4 {[%emt 0:00:30]} Ba6 {[%emt 0:00:30]} 22. Rfc1 {[%emt 0:00:30]} Rbc8 {[%emt 0:00:30]} 23. f4 {[%emt 0:00:30]} Rc5 {[%emt 0:00:30]} 24. g4 {[%emt 0:00:30]} hxg4 {[%emt 0:00:30]} 25. Nxg4 {[%emt 0:00:30]} f5 {[%emt 0:00:30]} 26. exf5 {[%emt 0:00:30]} gxf5 {[%emt 0:00:30]} 27. Re1 {[%emt 0:00:30]} Qg7 {[%emt 0:00:30]} 28. Qxg7+ {[%emt 0:00:30]} Kxg7 {[%emt 0:00:30]} 29. Re7+ {[%emt 0:00:30]} Kg6 {[%emt 0:00:30]} 30. Ne3 {[%emt 0:00:30]} Bc4 {[%emt 0:00:30]} 31. Rxd7 {[%emt 0:00:30]} 1/2-1/2

[Event "Fall IM Norm Invitational 2020"]
[Site "Charlotte"]
[Date "2020.10.04"]
[Round "8.1"]
[White "Stearman, Josiah"]
[Black "Velikanov, Alexander"]
[Result "1/2-1/2"]
[ECO "E91"]
[WhiteElo "2354"]
[BlackElo "2274"]
[Annotator "ChessBase"]
[PlyCount "122"]
[EventDate "2020.09.30"]
[EventType "tourn"]
[EventCountry "USA"]
[SourceTitle "playchess.com"]
[Source "ChessBase"]
[SourceQuality "1"]
[TimeControl "5400+30"]

1. Nf3 {[%emt 1:30:30]} Nf6 {[%emt 1:30:30]} 2. c4 {[%emt 0:00:30]} g6 {[%emt 0:00:30]} 3. Nc3 {[%emt 0:00:30]} Bg7 {[%emt 0:00:30]} 4. d4 {[%emt 0:00:30]} c5 {[%emt 0:00:30]} 5. e4 {[%emt 0:00:30]} O-O {[%emt 0:00:30]} 6. Be2 {[%emt 0:00:30]} d6 {[%emt 0:00:30]} 7. O-O {[%emt 0:00:30]} Bg4 {[%emt 0:00:30]} 8. dxc5 {[%emt 0:00:30]} dxc5 {[%emt 0:00:30]} 9. Be3 {[%emt 0:00:30]} Nfd7 {[%emt 0:00:30]} 10. Ne1 {[%emt 0:00:30]} Bxe2 {[%emt 0:00:30]} 11. Nxe2 {[%emt 0:00:30]} Nc6 {[%emt 0:00:30]} 12. Qc2 {[%emt 0:00:30]} Qa5 {[%emt 0:00:30]} 13. Nd3 {[%emt 0:00:30]} Nde5 {[%emt 0:00:30]} 14. Nxe5 {[%emt 0:00:30]} Bxe5 {[%emt 0:00:30]} 15. f4 {[%emt 0:00:30]} Bd4 {[%emt 0:00:30]} 16. Bxd4 {[%emt 0:00:30]} cxd4 {[%emt 0:00:30]} 17. a3 {[%emt 0:00:30]} Qc5 {[%emt 0:00:30]} 18. Qd3 {[%emt 0:00:30]} a5 {[%emt 0:00:30]} 19. b3 {[%emt 0:00:30]} Rab8 {[%emt 0:00:30]} 20. e5 {[%emt 0:00:30]} Rfd8 {[%emt 0:00:30]} 21. Ng3 {[%emt 0:00:30]} b5 {[%emt 0:00:30]} 22. Ne4 {[%emt 0:00:30]} bxc4 {[%emt 0:00:30]} 23. bxc4 {[%emt 0:00:30]} Qa7 {[%emt 0:00:30]} 24. Rab1 {[%emt 0:00:30]} a4 {[%emt 0:00:30]} 25. Rb5 {[%emt 0:00:30]} Qc7 {[%emt 0:00:30]} 26. Rfb1 {[%emt 0:00:30]} Na5 {[%emt 0:00:30]} 27. Nd2 {[%emt 0:00:30]} Nb7 {[%emt 0:00:30]} 28. Rd5 {[%emt 0:00:30]} Rxd5 {[%emt 0:00:30]} 29. cxd5 {[%emt 0:00:30]} Qc3 {[%emt 0:00:30]} 30. Qxc3 {[%emt 0:00:30]} dxc3 {[%emt 0:00:30]} 31. Ne4 {[%emt 0:00:30]} c2 {[%emt 0:00:30]} 32. Rc1 {[%emt 0:00:30]} Rc8 {[%emt 0:00:30]} 33. Kf2 {[%emt 0:00:30]} Nc5 {[%emt 0:00:30]} 34. Nxc5 {[%emt 0:00:30]} Rxc5 {[%emt 0:00:30]} 35. Ke3 {[%emt 0:00:30]} Rxd5 {[%emt 0:00:30]} 36. Rxc2 {[%emt 0:00:30]} Rb5 {[%emt 0:00:30]} 37. Rd2 {[%emt 0:00:30]} Rb3+ {[%emt 0:00:30]} 38. Rd3 {[%emt 0:00:30]} Rb2 {[%emt 0:00:30]} 39. Kf3 {[%emt 0:00:30]} Rb3 {[%emt 0:00:30]} 40. Re3 {[%emt 0:00:30]} f5 {[%emt 0:00:30]} 41. exf6 {[%emt 0:00:30]} exf6 {[%emt 0:00:30]} 42. h3 {[%emt 0:00:30]} Kf7 {[%emt 0:00:30]} 43. Ke4 {[%emt 0:00:30]} Rb2 {[%emt 0:00:30]} 44. g4 {[%emt 0:00:30]} Ke6 {[%emt 0:00:30]} 45. Kd4+ {[%emt 0:00:30]} Kd6 {[%emt 0:00:30]} 46. f5 {[%emt 0:00:30]} Kd7 {[%emt 0:00:30]} 47. Re6 {[%emt 0:00:30]} gxf5 {[%emt 0:00:30]} 48. gxf5 {[%emt 0:00:30]} Rb3 {[%emt 0:00:30]} 49. h4 {[%emt 0:00:30]} Rh3 {[%emt 0:00:30]} 50. Rxf6 {[%emt 0:00:30]} Rxh4+ {[%emt 0:00:30]} 51. Ke5 {[%emt 0:00:30]} Rh3 {[%emt 0:00:30]} 52. Rf7+ {[%emt 0:00:30]} Ke8 {[%emt 0:00:30]} 53. Ra7 {[%emt 0:00:30]} Rxa3 {[%emt 0:00:30]} 54. Kf6 {[%emt 0:00:30]} h5 {[%emt 0:00:30]} 55. Rh7 {[%emt 0:00:30]} Rh3 {[%emt 0:00:30]} 56. Ra7 {[%emt 0:00:30]} a3 {[%emt 0:00:30]} 57. Kg5 {[%emt 0:00:30]} Rg3+ {[%emt 0:00:30]} 58. Kxh5 {[%emt 0:00:30]} Kf8 {[%emt 0:00:30]} 59. Kh4 {[%emt 0:00:30]} Rg2 {[%emt 0:00:30]} 60. Rxa3 {[%emt 0:00:30]} Kf7 {[%emt 0:00:30]} 61. Ra6 {[%emt 0:00:30]} Rg1 {[%emt 0:00:30]} 1/2-1/2

[Event "Fall IM Norm Invitational 2020"]
[Site "Charlotte"]
[Date "2020.10.04"]
[Round "8.3"]
[White "Martin Del Campo C., Roberto"]
[Black "Li, Eric"]
[Result "0-1"]
[ECO "B94"]
[WhiteElo "2311"]
[BlackElo "2334"]
[Annotator "ChessBase"]
[PlyCount "126"]
[EventDate "2020.09.30"]
[EventType "tourn"]
[EventCountry "USA"]
[SourceTitle "playchess.com"]
[Source "ChessBase"]
[SourceQuality "1"]
[TimeControl "5400+30"]

1. e4 {[%emt 1:30:30]} c5 {[%emt 1:30:30]} 2. Nf3 {[%emt 0:00:30]} d6 {[%emt 0:00:30]} 3. d4 {[%emt 0:00:30]} cxd4 {[%emt 0:00:30]} 4. Nxd4 {[%emt 0:00:30]} Nf6 {[%emt 0:00:30]} 5. Nc3 {[%emt 0:00:30]} a6 {[%emt 0:00:30]} 6. Bg5 {[%emt 0:00:30]} Nbd7 {[%emt 0:00:30]} 7. f4 {[%emt 0:00:30]} Qc7 {[%emt 0:00:30]} 8. Qe2 {[%emt 0:00:30]} e5 {[%emt 0:00:30]} 9. Nf5 {[%emt 0:00:30]} h6 {[%emt 0:00:30]} 10. Bxf6 {[%emt 0:00:30]} Nxf6 {[%emt 0:00:30]} 11. O-O-O {[%emt 0:00:30]} exf4 {[%emt 0:00:30]} 12. Qd2 {[%emt 0:00:30]} Be6 {[%emt 0:00:30]} 13. Qxf4 {[%emt 0:00:30]} O-O-O {[%emt 0:00:30]} 14. Be2 {[%emt 0:00:30]} d5 {[%emt 0:00:30]} 15. e5 {[%emt 0:00:30]} g5 {[%emt 0:00:30]} 16. Qf1 {[%emt 0:00:30]} Qxe5 {[%emt 0:00:30]} 17. Nd4 {[%emt 0:00:30]} Bc5 {[%emt 0:00:30]} 18. Nxe6 {[%emt 0:00:30]} fxe6 {[%emt 0:00:30]} 19. Bxa6 {[%emt 0:00:30]} Be3+ {[%emt 0:00:30]} 20. Kb1 {[%emt 0:00:30]} bxa6 {[%emt 0:00:30]} 21. Qxa6+ {[%emt 0:00:30]} Kd7 {[%emt 0:00:30]} 22. Rhe1 {[%emt 0:00:30]} Ke7 {[%emt 0:00:30]} 23. Nb5 {[%emt 0:00:30]} Kf7 {[%emt 0:00:30]} 24. Nd4 {[%emt 0:00:30]} Bxd4 {[%emt 0:00:30]} 25. Rxe5 {[%emt 0:00:30]} Bxe5 {[%emt 0:00:30]} 26. Rf1 {[%emt 0:00:30]} Rb8 {[%emt 0:00:30]} 27. b3 {[%emt 0:00:30]} Rhc8 {[%emt 0:00:30]} 28. a4 {[%emt 0:00:30]} Rc7 {[%emt 0:00:30]} 29. Qe2 {[%emt 0:00:30]} Bc3 {[%emt 0:00:30]} 30. h4 {[%emt 0:00:30]} Ke7 {[%emt 0:00:30]} 31. hxg5 {[%emt 0:00:30]} hxg5 32. Rh1 {[%emt 0:00:30]} Kd6 {[%emt 0:01:00]} 33. Rh6 {[%emt 0:00:30]} Rb4 {[%emt 0:00:30]} 34. Qf2 {[%emt 0:00:30]} Re4 {[%emt 0:00:30]} 35. Qb6+ {[%emt 0:00:30]} Kd7 {[%emt 0:00:30]} 36. Rh1 {[%emt 0:00:30]} Rb4 {[%emt 0:00:30]} 37. Qe3 {[%emt 0:00:30]} g4 {[%emt 0:00:30]} 38. Qg5 {[%emt 0:00:30]} Kc6 {[%emt 0:00:30]} 39. Qe3 {[%emt 0:00:30]} Kd6 {[%emt 0:00:30]} 40. Rh6 {[%emt 0:00:30]} Rc6 {[%emt 0:00:30]} 41. Rh1 {[%emt 0:00:30]} Be5 {[%emt 0:00:30]} 42. Qa7 {[%emt 0:00:30]} Rc7 {[%emt 0:00:30]} 43. Qa5 {[%emt 0:00:30]} Bc3 {[%emt 0:00:30]} 44. Qa8 {[%emt 0:00:30]} Nd7 {[%emt 0:00:30]} 45. Qd8 {[%emt 0:00:30]} Rb8 {[%emt 0:00:30]} 46. Qg5 Rc4 {[%emt 0:00:30]} 47. Qe3 {[%emt 0:01:00]} Bd4 {[%emt 0:00:30]} 48. Qh6 {[%emt 0:00:30]} Rxa4 {[%emt 0:00:30]} 49. Kc1 {[%emt 0:00:30]} Be3+ {[%emt 0:00:30]} 50. Qxe3 {[%emt 0:00:30]} Ra1+ {[%emt 0:00:30]} 51. Kb2 {[%emt 0:00:30]} Rxh1 {[%emt 0:00:30]} 52. Qf4+ {[%emt 0:00:30]} Ne5 {[%emt 0:00:30]} 53. c4 {[%emt 0:00:30]} Re1 {[%emt 0:00:30]} 54. Kc3 {[%emt 0:00:30]} Re4 {[%emt 0:00:30]} 55. Qg3 {[%emt 0:00:30]} d4+ {[%emt 0:00:30]} 56. Kd2 {[%emt 0:00:30]} Ra8 {[%emt 0:00:30]} 57. b4 {[%emt 0:00:30]} Ra2+ {[%emt 0:00:30]} 58. Kd1 {[%emt 0:00:30]} Rae2 {[%emt 0:00:30]} 59. Qh4 {[%emt 0:00:30]} Re1+ {[%emt 0:00:30]} 60. Kc2 {[%emt 0:00:30]} Nxc4 {[%emt 0:00:30]} 61. Qd8+ {[%emt 0:00:30]} Kc6 {[%emt 0:00:30]} 62. g3 {[%emt 0:00:30]} R4e2+ {[%emt 0:00:30]} 63. Kd3 {[%emt 0:00:30]} Ne5+ {[%emt 0:00:30]} 0-1